Cogmind - Beta 11 @@@ ROGUE MODE // 2022.03.19 @ 23:34:33 Player: Termy Result: Destroyed by D-53 Grenadier with Mini Grenade Launcher Performance ------------- Evolutions (0) 0 Regions Visited (4) 800 Robots Destroyed (3) 15 Value Destroyed (84) 84 Prototype IDs (23) 460 Alien Tech Used (0) 0 Bonus (300) 300 TOTAL SCORE: 1659 Bonus ------- Aligned with FarCom 300 Cogmind --------- Core Integrity 0/250 Matter 139/300 Energy 245/250 System Corruption 0% Temperature Cool (1) Movement Flying (40) Location -9/Mines Parts ------- > --- POWER (1) -------- (None) > --- PROPULSION (2) --- Flight Unit > --- UTILITY (2) ------ Medium Battery 0b10 Alert Chip > --- WEAPON (2) ------- (None) > --- INVENTORY (5) ---- Medium Storage Unit EM Pulse Gun Firepult Peak State ------------ > --- POWER ------------ (None) > --- PROPULSION ------- Flight Unit Flight Unit > --- UTILITY ---------- Medium Battery 0b10 Alert Chip > --- WEAPON ----------- Firepult > --- INVENTORY -------- Medium Storage Unit EM Pulse Gun Light Assault Rifle [Rating: 29] Favorites ----------- Power Light Ion Engine Engine Light Ion Engine Propulsion Flight Unit Leg Aluminum Leg Flight Unit Flight Unit Utility Medium Battery Storage Medium Battery Processor 0b10 Alert Chip Weapon Mining Laser Energy Gun EM Pulse Gun Energy Cannon Firepult Ballistic Gun Light Assault Rifle Launcher Grenade Launcher Special Weapon Mining Laser Build | -11 -10 -10 -10 -9 ------- Run | Scr Mat Min Exi Min Slots Evolved . | . . . . . Power . | . . . . . Propulsion . | . . . . . Utility . | . . . . . Weapon . | . . . . . Parts Attached 17 | 6 3 4 3 1 Power 1 | 1 . . . . Engine 1 | 1 . . . . Core . | . . . . . Reactor . | . . . . . Propulsion 4 | 2 . 2 . . Treads . | . . . . . Leg 2 | 2 . . . . Wheel . | . . . . . Hover . | . . . . . Flight 2 | . . 2 . . Utility 3 | 1 1 . 1 . Device . | . . . . . Storage 2 | 1 1 . . . Processor 1 | . . . 1 . Hackware . | . . . . . Protection . | . . . . . Artifact . | . . . . . Weapon 9 | 2 2 2 2 1 Energy Gun 1 | . 1 . . . Energy Cannon 1 | . . . 1 . Ballistic Gun 4 | 2 1 . . 1 Ballistic Cannon . | . . . . . Launcher 1 | . . 1 . . Special Weapon 2 | . . 1 1 . Impact Weapon . | . . . . . Slashing Weapon . | . . . . . Piercing Weapon . | . . . . . Special Melee Weapon . | . . . . . Unidentified Prototypes 1 | . . . 1 . Parts Lost 7 | . 4 . . 3 Power 1 | . 1 . . . Propulsion 2 | . 1 . . 1 Utility . | . . . . . Weapon 4 | . 2 . . 2 Highest Loss Streak 3 | . 2 . . 3 To Critical Strikes . | . . . . . Average Slot Usage (%) 72 | . 73 71 71 . Engine 1 | . 4 . . . Leg 11 | . 26 3 . . Flight 15 | . . 21 28 . Storage 15 | . 15 17 14 . Processor 2 | . . . 6 . Ballistic Gun 11 | . 24 8 . . Launcher 4 | . . 5 8 . Special Weapon 8 | . . 14 14 . Naked Turns . | . . . . . Heaviest Build 12 | 11 12 9 6 3 Greatest Support 20 | 20 20 10 8 8 Greatest Overweight (x) 2 | . . 2 . . Average Overweight (x) . | . . . . . Largest Inventory Capacity 8 | 8 8 8 5 5 Average Capacity 6 | 6 8 5 5 5 Most Carried 5 | 5 2 5 5 4 Average Carried 2 | 1 . 2 4 4 Final Capacity 8 | 8 8 5 5 5 Final Carried 5 | . 1 4 5 4 Class Distribution -------------------- 100% | Mutant Dominant Class ---------------- Mutant | -10/Materials Mutant | -10/Mines Mutant | -10/Exiles Mutant | -9/Mines Resources | -11 -10 -10 -10 -9 ----------- Run | Scr Mat Min Exi Min Matter Collected 222 | 158 3 61 . . Remotely . | . . . . . Salvage Created 53 | . 26 27 . . Parts 3 | . 2 1 . . Haulers Intercepted . | . . . . . Recyclers Shooed . | . . . . . Parts Field Recycled . | . . . . . Retrieved Matter . | . . . . . Parts Self-Destructed . | . . . . . Prevented . | . . . . . Kills | -11 -10 -10 -10 -9 ------- Run | Scr Mat Min Exi Min Combat Hostiles Destroyed 3 | . 1 2 . . Guns 2 | . . 2 . . AOE 1 | . 1 . . . Classes Destroyed 2 | . 1 1 . . Swarmer 2 | . . 2 . . Grunt 1 | . 1 . . . Best Kill Streak 2 | . 1 2 . . Combat Bots Only 2 | . 1 2 . . Max Kills in Single Turn 1 | . 1 1 . . Gunslinging . | . . . . . Exploded 1 | . 1 . . . Melee . | . . . . . Uniques/NPCs Destroyed . | . . . . . Combat | -11 -10 -10 -10 -9 -------- Run | Scr Mat Min Exi Min Damage Taken 924 | . 662 56 . 206 Core 272 | . 153 25 . 94 Absorbed by Shields . | . . . . . Core Remaining (%) 100 | 100 . . . . Volleys Fired 16 | . 12 4 . . Largest 2 | . 2 2 . . Hottest 120 | . 60 120 . . Shots Fired 32 | . 24 8 . . Gun 28 | . 24 4 . . Cannon . | . . . . . Launcher . | . . . . . Special 4 | . . 4 . . Kinetic 24 | . 20 4 . . Thermal 4 | . . 4 . . Explosive . | . . . . . Electromagnetic 4 | . 4 . . . Robot Hit Streak 5 | . 3 5 . . Robot Miss Streak 2 | . 2 1 . . Penetration Max . | . . . . . Secondary Targets . | . . . . . Shots Hit Robots 11 | . 7 4 . . Core Hits 6 | . 3 3 . . Critical Kills . | . . . . . Critical Parts Destroyed . | . . . . . Critical Strikes . | . . . . . Melee Attacks . | . . . . . Impact . | . . . . . Slashing . | . . . . . Piercing . | . . . . . Sneak Attacks . | . . . . . Combat Hostiles . | . . . . . Follow-up Attacks . | . . . . . Damage Inflicted 465 | . 435 30 . . Guns 145 | . 115 30 . . Cannons . | . . . . . Explosions 320 | . 320 . . . Melee . | . . . . . Ramming . | . . . . . Kinetic 145 | . 115 30 . . Thermal 320 | . 320 . . . Explosive . | . . . . . Electromagnetic . | . . . . . Impact . | . . . . . Slashing . | . . . . . Piercing . | . . . . . Highest Corruption . | . . . . . Average Corruption . | . . . . . Corruption Purged . | . . . . . Corruption Blocked . | . . . . . Overload Shots . | . . . . . Overflow Damage 101 | . 101 . . . Projectiles . | . . . . . Explosions 101 | . 101 . . . Melee . | . . . . . Knockbacks . | . . . . . Impact . | . . . . . Kinetic . | . . . . . Secondary . | . . . . . Self-Inflicted Damage 197 | . 197 . . . Shots 3 | . 3 . . . Rammed . | . . . . . Targets Rammed . | . . . . . Kicked . | . . . . . Crushed . | . . . . . Highest Temperature 33 | . 33 20 . . Average Temperature 11 | . 10 12 . . Received Heat Transfer 296 | . 276 . . 20 Siege Activations . | . . . . . Robots Corrupted . | . . . . . Combat Hostiles . | . . . . . Parts Fried . | . . . . . Impact Corruptions . | . . . . . Robots Melted . | . . . . . Combat Hostiles . | . . . . . Parts Melted . | . . . . . Heat Transferred 200 | . 200 . . . Parts Sabotaged . | . . . . . Parts Stolen . | . . . . . Parts Stripped . | . . . . . Power Chain Reactions . | . . . . . Missiles Intercepted . | . . . . . Alert | -11 -10 -10 -10 -9 ------- Run | Scr Mat Min Exi Min Peak Influence 303 | . 303 158 . 2 Initial 115 | . . 115 . . Average 122 | . 137 154 . . Maximum Alert Level 1 | . 1 . . . Low Security (%) 90 | 100 84 100 . 100 Level 1 9 | . 15 . . . Level 2 . | . . . . . Level 3 . | . . . . . Level 4 . | . . . . . Level 5 . | . . . . . High Security . | . . . . . Max Security . | . . . . . Squads Dispatched 1 | . 1 . . . Investigation . | . . . . . Extermination . | . . . . . Reinforcement 1 | . 1 . . . Assault . | . . . . . Garrison . | . . . . . Intercept . | . . . . . Searches Triggered . | . . . . . Construction Impeded . | . . . . . Haulers Reinforced . | . . . . . Active Scanning Responses . | . . . . . Cargo Convoy Interrupts . | . . . . . Stealth | -11 -10 -10 -10 -9 --------- Run | Scr Mat Min Exi Min Distress Signals 1 | . 1 . . . Communications Jammed . | . . . . . Distress Signals . | . . . . . Times Spotted 37 | . 9 3 . 25 Peak Tracking Total 23 | . 4 3 . 23 Tactical Retreats 1 | . 1 . . . Traps | -11 -10 -10 -10 -9 ------- Run | Scr Mat Min Exi Min Traps Triggered . | . . . . . Indirectly . | . . . . . Trap Hack Attempts . | . . . . . Triggered . | . . . . . Disarmed . | . . . . . Reprogrammed . | . . . . . Reused . | . . . . . Traps Extracted . | . . . . . Installed . | . . . . . Triggered . | . . . . . Machines | -11 -10 -10 -10 -9 ---------- Run | Scr Mat Min Exi Min Machines Disabled 3 | . 3 . . . Max in Single Turn 2 | . 2 . . . Machines Sabotaged . | . . . . . Garrisons Compromised . | . . . . . Overloaded Fab Kills . | . . . . . Hacking | -11 -10 -10 -10 -9 --------- Run | Scr Mat Min Exi Min Machines Accessed 6 | . 1 . 5 . Terminals 1 | . 1 . . . Fabricators . | . . . . . Repair Stations . | . . . . . Recycling Units . | . . . . . Scanalyzers . | . . . . . Garrison Access . | . . . . . Total Hacks 52 | . 2 . 50 . Successful 51 | . 1 . 50 . Failed 1 | . 1 . . . Catastrophic . | . . . . . Database Lockouts . | . . . . . Manual 1 | . . . 1 . Terminals 2 | . 2 . . . Fabricators . | . . . . . Repair Stations . | . . . . . Recycling Units . | . . . . . Scanalyzers . | . . . . . Garrison Access . | . . . . . Terminal Hacks 51 | . 1 . 50 . Record 50 | . 1 . 49 . EX-Prototype ID Bank 1 | . . . 1 . Fabricator Hacks . | . . . . . Repair Station Hacks . | . . . . . Recycling Unit Hacks . | . . . . . Scanalyzer . | . . . . . Garrison Access Hacks . | . . . . . Unauthorized Hacks . | . . . . . Terminals . | . . . . . Fabricators . | . . . . . Repair Stations . | . . . . . Recycling Units . | . . . . . Scanalyzers . | . . . . . Garrison Access . | . . . . . Data Cores Recovered . | . . . . . Used . | . . . . . Hacking Detections 1 | . 1 . . . Full Trace Events . | . . . . . Feedback Events . | . . . . . Feedback Blocked . | . . . . . Robot Schematics Acquired . | . . . . . Robots Built . | . . . . . Authchips . | . . . . . Time . | . . . . . Total Robot Build Rating . | . . . . . Part Schematics Acquired . | . . . . . Parts Built . | . . . . . Authchips . | . . . . . Time . | . . . . . Total Part Build Rating . | . . . . . Parts Repaired . | . . . . . Time . | . . . . . Parts Recycled . | . . . . . Recycled Matter . | . . . . . Retrieved Matter . | . . . . . Retrieved Components . | . . . . . Parts Scanalyzed . | . . . . . Part Schematics Acquired . | . . . . . Parts Damaged . | . . . . . Bothacking | -11 -10 -10 -10 -9 ------------ Run | Scr Mat Min Exi Min Used RIF Installer . | . . . . . Robots Hacked . | . . . . . Non-combat . | . . . . . Combat . | . . . . . Robot Hacks Applied . | . . . . . Relay Couplers Released . | . . . . . Fabnet Peak Effective % . | . . . . . Robots Rewired . | . . . . . Allies Hacked . | . . . . . Hacks Repelled . | . . . . . Allies | -11 -10 -10 -10 -9 -------- Run | Scr Mat Min Exi Min Total Allies . | . . . . . Largest Group . | . . . . . Highest-Rated Group . | . . . . . Highest-Rated Ally . | . . . . . Total Orders . | . . . . . Ally Attacks . | . . . . . Total Damage . | . . . . . Kills . | . . . . . Allies Corrupted . | . . . . . Allies Melted . | . . . . . Intel | -11 -10 -10 -10 -9 ------- Run | Scr Mat Min Exi Min Robot Analysis Total . | . . . . . Derelict Logs Recovered 1 | . . 1 . . Drone Launches . | . . . . . Drone Recoveries . | . . . . . Exploration | -11 -10 -10 -10 -9 ------------- Run | Scr Mat Min Exi Min Turns Passed 865 | 69 329 114 349 4 Spaces Moved 1365 | 54 210 207 887 7 Core 18 | 17 . 1 . . Treads . | . . . . . Legs 249 | 37 210 2 . . Wheels . | . . . . . Hover . | . . . . . Flight 1098 | . . 204 887 7 Fastest Speed 37 | 50 120 37 37 37 Average Speed 52 | 97 120 38 37 38 Slowest Speed 150 | 120 120 150 37 40 Overloaded Moves . | . . . . . Propulsion Burnouts . | . . . . . Robots Hopped . | . . . . . Cave-ins Triggered . | . . . . . Exploration Rate (%) 36 | 3 30 48 94 9 Regions Visited 4 Branch Regions 3 Pre-discovered Areas 1 | . . . 1 . Known Exits Taken . | . . . . . Unknown Exits Taken 4 | 1 1 1 1 . Scrap Searched 1 | . . 1 . . Spaces Dug . | . . . . . Terrain Destroyed 56 | . 55 1 . . Melee . | . . . . . Projectile 1 | . . 1 . . AOE 55 | . 55 . . . Terrain Rammed . | . . . . . Walls Destroyed . | . . . . . Machines Disabled . | . . . . . Actions | -11 -10 -10 -10 -9 --------- Run | Scr Mat Min Exi Min Total 1481 | 71 265 227 910 8 Wait 49 | . 37 3 9 . Move 1361 | 53 209 206 886 7 Hop . | . . . . . Pick Up 24 | 9 3 6 6 . Fast Attach . | . . . . . Attach 17 | 6 3 4 3 1 Detach 3 | . 1 2 . . Swap . | . . . . . Drop 11 | 3 . 2 6 . Fire 16 | . 12 4 . . Melee . | . . . . . Ram . | . . . . . Kick . | . . . . . Crush . | . . . . . Escape Stasis . | . . . . . Rewire . | . . . . . Trap . | . . . . . Miscellaneous . | . . . . . Route ------- -11/Scrapyard -10/Materials -10/Mines (discovered 2 exits: [*Mat] / *Exi) -10/Exiles (discovered 2 exits: [*Min x2]) -9/Mines (discovered 1 exit: [*Mat]) History --------- Turn | Location | Event 13 | -11/Scrapyard | Discovered new exit (range 16) 70 | -11/Scrapyard | Entered Materials 235 | -10/Materials | Discovered new exit (range 7) 317 | -10/Materials | Build established: Mutant 364 | -10/Materials | Core integrity fell below 50% 399 | -10/Materials | Entered Mines 449 | -10/Mines | Learned Materials stockpile data 461 | -10/Mines | YI-UF0 nonchalantly dropped a Grenade Launcher on the ground 473 | -10/Mines | Discovered new exit (range 14) 511 | -10/Mines | Deemed a non-threat by the Exiles lab entrance 511 | -10/Mines | Discovered new exit (range 5) 513 | -10/Mines | Entered Exiles 528 | -10/Exiles | Met 8R-AWN 535 | -10/Exiles | Met EX-HEX 560 | -10/Exiles | Met EX-DEC 565 | -10/Exiles | Learned location of Zion (-7) 588 | -10/Exiles | Visited The Gauntlet 652 | -10/Exiles | Discovered new exit (range 14) 686 | -10/Exiles | Met EX-BIN 694 | -10/Exiles | Aligned with FarCom system 694 | -10/Exiles | Given EX-Vault access code 714 | -10/Exiles | Opened EX-Vault 716 | -10/Exiles | Found Prototype Processor 717 | -10/Exiles | Identified 0b10 Alert Chip 721 | -10/Exiles | Found Firepult 735 | -10/Exiles | Warned to stay clear of 0b10 Research branches 817 | -10/Exiles | Discovered new exit (range 14) 862 | -10/Exiles | Stole two prototypes: 0b10 Alert Chip, Firepult 862 | -10/Exiles | Entered Mines 863 | -9/Mines | Assembled infested the area 864 | -9/Mines | Discovered new exit (range 10) 865 | -9/Mines | Core integrity fell below 20% 866 | -9/Mines | Destroyed by D-53 Grenadier with Mini Grenade Launcher Last Messages --------------- change it right after you leave. Most certainly not to something like 1234 which I did last time as a little joke and some thief managed to sneak in here and steal a few of HEX's prototypes. 00817_ EXIT=FOUND LOCATION=UNKNOWN GOAL=ESCAPE 00862_ Receiving FarCom transmissions... 00863_ ALERT: Infestation in the mines, dispatching Demolisher response squad. 00863_ Mining Laser destroyed. [Achievement: Hunted] 00864_ EXIT=FOUND 00864_ Flight Unit destroyed. 00866_ 8E-JM4(h): "I'll hold them off! Go on ahead or try to find another way!" 00866_ HV Slug penetrates as-27445. 00866_ C-30 ARC bursts open, deploying its payload. 00866_ D-53 Grenadier unfolds itself. 00866_ Lgt. Assault Rifle destroyed. 00866_ as-09189 destroyed. Map ----- +----------------------------------------------------+ | ?????????????????????????????????????????????????? | | ?????????????????????????????????????????????????? | | ?????????????????????????????????????????????????? | | ?????????????????????????????????????????????????? | | ?????????????????????????????????????????????????? | | ?????????????????????????????????????????????????? | | ?????????????????????????????????????????????????? | | ?????????????????????????????????????????????????? | | ?????????????????????????????????????????????????? | | ?????????????????????????????????????????????????? | | ?????????????????????????????????????????????????? | | ?????????????????????????????????????????????????? | | ?????????????????????????????????????????????????? | | ?????????????????????????????????????????????????? | | ?????????????????????????????????????????????????? | | ????????????????????????###??????????????????????? | | ??????????????????????ss k??????????????????????? | | ???????????????????????? < ??????????????????????? | | ?????????????????????s?sk ??????????????????????? | | ???????????????????????? ??????????????????????? | | ?????????? ????#???????? d ??????????????????????? | | ?????????? ??# ###????#%#??????????????????????? | | ??????????# # #??##d##??????????? ????????? | | ?????????## s ### ####?????? ????????? | | ?????????# s # ##??? ???????? | | ?????????# s @ ## ???????? | | ??????????# h a #??????? | | ?????????????## #### aa aaaaa a #??????? | | ????????????????????## # % a a ??????? | | ?????????????????????####?# aaa a ??????? | | ???????????????????????????## a a aa ??????? | | ?????????????????????????????# ## ???????? | | ??????????????????????????????# ##???????????? | | ???????????????????????????????# ##????????????? | | ?????????????????????????????????###?????????????? | | ?????????????????????????????????????????????????? | | | | | | | | | | | | | | | | | | | | | | | | | | | | | +----------------------------------------------------+ Best States ------------- Heat Dissipation 25 Energy Generation 10 Energy Capacity 250 Matter Stores 198 Matter Capacity 300 Sight Range 16 Terrain Scan Density 10 Evasion (%) 62 Item Schematics ----------------- None Robot Schematics ------------------ None Fabricated ------------ Nothing Alien Tech Used ----------------- None Achievements -------------- Hunted Challenges ------------ None Game ------ Seed TargetingPulseChip Manual? 0 Play Time 00:29:36 Cumulative 5.8 hours Start 2022.03.19 @ 23:00:32 End 2022.03.19 @ 23:34:33 Sessions 1 Manual Loads 0 Difficulty Rogue Special Mode None Game No. 6 Rogue 6 Adventurer 0 Explorer 0 Win Type - Total 0 Types 0/0/0/0/0/0/0/0/0 Lore% 17 Gallery% 15 Achievement% 20 Wizard Run 0 Options --------- ASCII 0 Keyboard 0 Movement Numpad Keybinds 0 Fullscreen 2 Font 18/X11Bold Map View 76x50 Tactical HUD 1 Map Filters NONE Filters NONE Steam 1 RUN: 7d0bca26-2cea-4f30-abf4-ddd1bb9f1060